fUSD/lending_fUSD_20250617
["ID","MTS","AMOUNT","RATE_DAILY","PERIOD"]
[366334981,1750194639072,-632.68687383,0.00016438,2]
[366334983,1750194639083,-490.0,0.00016438,2]
[366334985,1750194639092,-1044.69,0.00016438,2]
[366334987,1750194639103,-490.0,0.00016438,2]
[366334989,1750194639113,-490.0,0.00016438,2]
[366334991,1750194639123,-631.98,0.00016438,2]
[366334994,1750194639133,-490.0,0.00016438,2]
[366334996,1750194639142,-490.0,0.00016438,2]
[366334998,1750194639153,-460.0,0.00016438,2]
[366335000,1750194639165,-869.79,0.00016438,2]
[366335002,1750194639175,-490.0,0.00016438,2]
[366335004,1750194639185,-490.0,0.00016438,2]
[366335006,1750194639195,-490.0,0.00016438,2]
[366335008,1750194639205,-490.0,0.00016438,2]
[366335010,1750194639214,-490.0,0.00016438,2]
[366335012,1750194639225,-626.55,0.00016438,2]
[366335014,1750194639234,-490.0,0.00016438,2]
[366335016,1750194639245,-490.0,0.00016438,2]
[366335018,1750194639255,-280.49733338,0.00016438,2]
[366335043,1750194639490,-359.47266662,0.00016438,2]
[366335045,1750194639500,-490.0,0.00016438,2]
[366335047,1750194639511,-697.53,0.00016438,2]
[366335049,1750194639521,-490.0,0.00016438,2]
[366335051,1750194639532,-490.0,0.00016438,2]
[366335053,1750194639543,-455.11949549,0.00016438,2]
[366335055,1750194639553,-656.87,0.00016438,2]
[366335057,1750194639563,-490.0,0.00016438,2]
[366335059,1750194639573,-614.45,0.00016438,2]
[366335061,1750194639583,-490.0,0.00016438,2]
[366335063,1750194639592,-490.0,0.00016438,2]
[366335065,1750194639601,-491.75563242,0.00016438,2]
[366335067,1750194639611,-490.0,0.00016438,2]
[366335069,1750194639621,-490.0,0.00016438,2]
[366335071,1750194639631,-187.70861545,0.00016438,2]
[366335073,1750194639640,-490.0,0.00016438,2]
[366335075,1750194639651,-510.0,0.00016438,2]
[366335077,1750194639661,-490.0,0.00016438,2]
[366335079,1750194639679,-490.0,0.00016438,2]
[366335081,1750194639689,-490.0,0.00016438,2]
[366335083,1750194639698,-411.28488026,0.00016438,2]
[366335085,1750194639708,-490.0,0.00016438,2]
[366335087,1750194639718,-490.0,0.00016438,2]
[366335089,1750194639727,-490.0,0.00016438,2]
[366335091,1750194639737,-773.39,0.00016438,2]
[366335093,1750194639747,-392.41870981,0.00016438,2]
[366335096,1750194639768,-247.61129019,0.00016438,2]
[366335099,1750194639778,-490.0,0.00016438,2]
[366335101,1750194639787,-169.32761941,0.00016438,2]
[366335103,1750194639796,-490.0,0.00016438,2]
[366335105,1750194639806,-490.0,0.00016438,2]
[366335106,1750194639816,-497.4,0.00016438,2]
[366335109,1750194639826,-614.86789611,0.00016438,2]
[366335111,1750194639836,-490.0,0.00016438,2]
[366335113,1750194639847,-490.0,0.00016438,2]
[366335115,1750194639856,-490.0,0.00016438,2]
[366335117,1750194639866,-460.0,0.00016438,2]
[366335119,1750194639876,-490.0,0.00016438,2]
[366335121,1750194639885,-465.56431204,0.00016438,2]
[366335123,1750194639895,-490.0,0.00016438,2]
[366335124,1750194639908,-490.0,0.00016438,2]
[366335126,1750194639918,-490.0,0.00016438,2]
[366335128,1750194639928,-490.0,0.00016438,2]
[366335129,1750194639937,-490.0,0.00016438,2]
[366335130,1750194639948,-460.0,0.00016438,2]
[366335131,1750194639958,-490.0,0.00016438,2]
[366335132,1750194639969,-490.0,0.00016438,2]
[366335133,1750194639979,-295.33496657,0.00016438,2]
[366335134,1750194639993,-194.66503343,0.00016438,2]
[366335135,1750194640008,-490.0,0.00016438,2]
[366335136,1750194640018,-490.0,0.00016438,2]
[366335137,1750194640028,-490.0,0.00016438,2]
[366335139,1750194640038,-435.94911084,0.00016438,2]
[366335141,1750194640047,-583.74304253,0.00016438,2]
[366335143,1750194640057,-490.0,0.00016438,2]
[366335145,1750194640067,-523.54,0.00016438,2]
[366335147,1750194640078,-252.71065592,0.00016438,2]
[366335149,1750194640088,-490.0,0.00016438,2]
[366335151,1750194640098,-490.0,0.00016438,2]
[366335153,1750194640107,-490.0,0.00016438,2]
[366335155,1750194640117,-490.0,0.00016438,2]
[366335157,1750194640127,-490.0,0.00016438,2]
[366335159,1750194640136,-490.0,0.00016438,2]
[366335161,1750194640146,-490.0,0.00016438,2]
[366335163,1750194640156,-490.0,0.00016438,2]
[366335166,1750194640166,-1599.04,0.00016438,2]
[366335168,1750194640176,-684.76,0.00016438,2]
[366335170,1750194640185,-490.0,0.00016438,2]
[366335172,1750194640194,-490.0,0.00016438,2]
[366335174,1750194640204,-151.0,0.00016438,2]
[366335176,1750194640214,-490.0,0.00016438,2]
[366335178,1750194640223,-151.0,0.00016438,2]
[366335180,1750194640242,-617.58,0.00016438,2]
[366335184,1750194640253,-588.0,0.00016438,2]
[366335186,1750194640262,-151.0,0.00016438,2]
[366335188,1750194640271,-964.73,0.00016438,2]
[366335190,1750194640281,-607.52237626,0.00016438,2]
[366335192,1750194640293,-490.0,0.00016438,2]
[366335194,1750194640305,-490.0,0.00016438,2]
[366335196,1750194640315,-490.0,0.00016438,2]
[366335198,1750194640325,-490.0,0.00016438,2]
[366335200,1750194640334,-490.0,0.00016438,2]
[366335202,1750194640343,-490.0,0.00016438,2]
[366335204,1750194640352,-490.0,0.00016438,2]
[366335206,1750194640362,-490.0,0.00016438,2]
[366335208,1750194640371,-618.15,0.00016438,2]
[366335210,1750194640381,-354.31899295,0.00016438,2]
[366335212,1750194640390,-490.0,0.00016438,2]
[366335214,1750194640400,-810.84,0.00016438,2]
[366335216,1750194640409,-380.0,0.00016438,2]
[366335218,1750194640419,-490.0,0.00016438,2]
[366335220,1750194640428,-490.0,0.00016438,2]
[366335222,1750194640438,-490.0,0.00016438,2]
[366335224,1750194640447,-490.0,0.00016438,2]
[366335226,1750194640456,-490.0,0.00016438,2]
[366335228,1750194640465,-530.84,0.00016438,2]
[366335230,1750194640474,-490.0,0.00016438,2]
[366335232,1750194640483,-151.0,0.00016438,2]
[366335234,1750194640492,-1051.47,0.00016438,2]
[366335236,1750194640501,-490.0,0.00016438,2]
[366335238,1750194640512,-490.0,0.00016438,2]
[366335240,1750194640521,-490.0,0.00016438,2]
[366335242,1750194640533,-490.0,0.00016438,2]
[366335244,1750194640546,-490.0,0.00016438,2]
[366335246,1750194640555,-460.0,0.00016438,2]
[366335248,1750194640565,-490.0,0.00016438,2]
[366335250,1750194640575,-490.0,0.00016438,2]
[366335252,1750194640586,-490.0,0.00016438,2]
[366335254,1750194640595,-490.0,0.00016438,2]
[366335256,1750194640605,-490.0,0.00016438,2]
[366335258,1750194640616,-490.0,0.00016438,2]
[366335260,1750194640626,-490.0,0.00016438,2]
[366335262,1750194640635,-490.83404968,0.00016438,2]
[366335264,1750194640644,-490.0,0.00016438,2]
[366335266,1750194640653,-490.0,0.00016438,2]
[366335268,1750194640663,-490.0,0.00016438,2]
[366335270,1750194640673,-490.0,0.00016438,2]
[366335272,1750194640683,-1252.5,0.00016438,2]
[366335313,1750194641054,-490.0,0.00016438,2]
[366335315,1750194641068,-849.82,0.00016438,2]
[366335317,1750194641077,-490.0,0.00016438,2]
[366335319,1750194641086,-490.0,0.00016438,2]
[366335321,1750194641096,-151.0,0.00016438,2]
[366335324,1750194641106,-490.0,0.00016438,2]
[366335326,1750194641115,-690.9,0.00016438,2]
[366335328,1750194641124,-490.0,0.00016438,2]
[366335330,1750194641133,-490.0,0.00016438,2]
[366335332,1750194641142,-490.0,0.00016438,2]
[366335334,1750194641151,-548.0,0.00016438,2]
[366335336,1750194641161,-490.0,0.00016438,2]
[366335338,1750194641170,-490.0,0.00016438,2]
[366335339,1750194641177,-490.0,0.00016438,2]
[366335341,1750194641187,-276.671131,0.00016438,2]
[366335343,1750194641195,-490.0,0.00016438,2]
[366335345,1750194641203,-490.0,0.00016438,2]
[366335347,1750194641212,-665.09,0.00016438,2]
[366335349,1750194641220,-490.0,0.00016438,2]
[366335351,1750194641243,-490.0,0.00016438,2]
[366335353,1750194641250,-490.0,0.00016438,2]
[366335355,1750194641259,-151.0,0.00016438,2]
[366335357,1750194641268,-490.0,0.00016438,2]
[366335360,1750194641277,-151.0,0.00016438,2]
[366335362,1750194641285,-211.07128088,0.00016438,2]
[366335364,1750194641294,-2751.164359,0.00016438,2]
[366335366,1750194641303,-490.0,0.00016438,2]
[366335368,1750194641313,-490.0,0.00016438,2]
[366335370,1750194641322,-653.14,0.00016438,2]
[366335372,1750194641332,-490.0,0.00016438,2]
[366335374,1750194641342,-490.0,0.00016438,2]
[366335376,1750194641351,-151.0,0.00016438,2]
[366335378,1750194641361,-542.74,0.00016438,2]
[366335380,1750194641371,-490.0,0.00016438,2]
[366335382,1750194641380,-490.0,0.00016438,2]
[366335384,1750194641389,-490.0,0.00016438,2]
[366335386,1750194641398,-490.0,0.00016438,2]
[366335388,1750194641408,-490.0,0.00016438,2]
[366335390,1750194641417,-490.0,0.00016438,2]
[366335392,1750194641427,-1464.74,0.00016438,2]
[366335394,1750194641436,-151.0,0.00016438,2]
[366335396,1750194641446,-490.0,0.00016438,2]
[366335398,1750194641455,-1419.01,0.00016438,2]
[366335400,1750194641464,-2314.44,0.00016438,2]
[366335402,1750194641474,-2649.523738,0.00016438,2]
[366335404,1750194641484,-159.094829,0.00016438,2]
[366335406,1750194641494,-490.0,0.00016438,2]
[366335408,1750194641503,-2036.83,0.00016438,2]
[366335410,1750194641514,-151.0,0.00016438,2]
[366335412,1750194641523,-490.0,0.00016438,2]
[366335414,1750194641537,-490.0,0.00016438,2]
[366335416,1750194641547,-490.0,0.00016438,2]
[366335418,1750194641556,-490.0,0.00016438,2]
[366335420,1750194641567,-161.916212,0.00016438,2]
[366335422,1750194641576,-490.0,0.00016438,2]
[366335424,1750194641586,-490.0,0.00016438,2]
[366335426,1750194641595,-490.0,0.00016438,2]
[366335428,1750194641607,-490.0,0.00016438,2]
[366335430,1750194641617,-650.94,0.00016438,2]
[366335432,1750194641627,-1740.03,0.00016438,2]
[366335434,1750194641636,-490.0,0.00016438,2]
[366335436,1750194641646,-490.0,0.00016438,2]
[366335438,1750194641656,-725.62,0.00016438,2]
[366335440,1750194641666,-559.66,0.00016438,2]
[366335442,1750194641676,-490.0,0.00016438,2]
[366335444,1750194641686,-490.0,0.00016438,2]
[366335446,1750194641696,-490.0,0.00016438,2]
[366335448,1750194641706,-490.0,0.00016438,2]
[366335450,1750194641716,-490.0,0.00016438,2]
[366335452,1750194641726,-907.67,0.00016438,2]
[366335454,1750194641736,-460.0,0.00016438,2]
[366335456,1750194641746,-490.0,0.00016438,2]
[366335459,1750194641756,-460.0,0.00016438,2]
[366335460,1750194641766,-490.0,0.00016438,2]
[366335462,1750194641775,-490.0,0.00016438,2]
[366335464,1750194641785,-490.0,0.00016438,2]
[366335467,1750194641795,-490.0,0.00016438,2]
[366335469,1750194641806,-490.0,0.00016438,2]
[366335471,1750194641816,-490.0,0.00016438,2]
[366335473,1750194641826,-490.0,0.00016438,2]
[366335475,1750194641835,-1703.38,0.00016438,2]
[366335477,1750194641845,-490.0,0.00016438,2]
[366335479,1750194641855,-490.0,0.00016438,2]
[366335481,1750194641865,-490.0,0.00016438,2]
[366335483,1750194641874,-490.0,0.00016438,2]
[366335485,1750194641883,-490.0,0.00016438,2]
[366335487,1750194641894,-490.0,0.00016438,2]
[366335489,1750194641904,-490.0,0.00016438,2]
[366335491,1750194641913,-490.0,0.00016438,2]
[366335493,1750194641923,-490.0,0.00016438,2]
[366335495,1750194641932,-490.0,0.00016438,2]
[366335497,1750194641942,-1295.67,0.00016438,2]
[366335499,1750194641951,-490.0,0.00016438,2]
[366335501,1750194641961,-490.0,0.00016438,2]
[366335503,1750194641971,-490.0,0.00016438,2]
[366335505,1750194641981,-388.89115398,0.00016438,2]
[366335507,1750194641991,-490.0,0.00016438,2]
[366335509,1750194642000,-490.0,0.00016438,2]
[366335511,1750194642012,-490.0,0.00016438,2]
[366335513,1750194642021,-490.0,0.00016438,2]
[366335515,1750194642031,-460.0,0.00016438,2]
[366335517,1750194642040,-497.15108105,0.00016438,2]
[366335519,1750194642049,-490.0,0.00016438,2]
[366335521,1750194642059,-460.0,0.00016438,2]
[366335523,1750194642068,-490.0,0.00016438,2]
[366335525,1750194642077,-490.0,0.00016438,2]
[366335527,1750194642087,-490.0,0.00016438,2]
[366335529,1750194642096,-490.0,0.00016438,2]
[366335531,1750194642106,-151.0,0.00016438,2]
[366335533,1750194642116,-628.49,0.00016438,2]
[366335535,1750194642126,-1063.41,0.00016438,2]
[366335537,1750194642135,-490.0,0.00016438,2]
[366335539,1750194642144,-490.0,0.00016438,2]
[366335541,1750194642153,-490.0,0.00016438,2]
[366335543,1750194642163,-490.0,0.00016438,2]
[366335545,1750194642172,-490.0,0.00016438,2]
[366335547,1750194642181,-490.0,0.00016438,2]
[366335549,1750194642191,-2383.8,0.00016438,2]
[366335551,1750194642200,-490.0,0.00016438,2]
[366335553,1750194642209,-490.0,0.00016438,2]
[366335555,1750194642219,-807.85,0.00016438,2]
[366335557,1750194642227,-460.0,0.00016438,2]
[366335559,1750194642237,-490.0,0.00016438,2]
[366335561,1750194642247,-1811.35,0.00016438,2]
[366335563,1750194642256,-490.0,0.00016438,2]
[366335565,1750194642265,-490.0,0.00016438,2]
[366335567,1750194642273,-577.94387862,0.00016438,2]
[366335569,1750194642283,-490.0,0.00016438,2]
[366335571,1750194642292,-490.0,0.00016438,2]
[366335573,1750194642302,-490.0,0.00016438,2]
[366335575,1750194642312,-490.0,0.00016438,2]
[366335577,1750194642321,-490.0,0.00016438,2]
[366335579,1750194642331,-954.96,0.00016438,2]
[366335581,1750194642340,-804.21,0.00016438,2]
[366335583,1750194642349,-1642.08,0.00016438,2]
[366335585,1750194642358,-490.0,0.00016438,2]
[366335587,1750194642367,-640.98,0.00016438,2]
[366335589,1750194642377,-683.62,0.00016438,2]
[366335591,1750194642386,-490.0,0.00016438,2]
[366335593,1750194642395,-490.0,0.00016438,2]
[366335595,1750194642404,-500.0,0.00016438,2]
[366335597,1750194642413,-500.0,0.00016438,2]
[366335599,1750194642423,-460.0,0.00016438,2]
[366335601,1750194642432,-500.0,0.00016438,2]
[366335603,1750194642441,-490.0,0.00016438,2]
[366335605,1750194642450,-490.0,0.00016438,2]
[366335607,1750194642459,-490.0,0.00016438,2]
[366335609,1750194642468,-490.0,0.00016438,2]
[366335611,1750194642478,-490.0,0.00016438,2]
[366335613,1750194642487,-490.0,0.00016438,2]
[366335615,1750194642496,-490.0,0.00016438,2]
[366335617,1750194642505,-490.0,0.00016438,2]
[366335619,1750194642515,-410.25,0.00016438,2]
[366335621,1750194642525,-490.0,0.00016438,2]
[366335623,1750194642537,-490.0,0.00016438,2]
[366335625,1750194642547,-490.0,0.00016438,2]
[366335627,1750194642556,-420.0,0.00016438,2]
[366335629,1750194642565,-490.0,0.00016438,2]
[366335631,1750194642575,-188.20192305,0.00016438,2]
[366335633,1750194642584,-526.01,0.00016438,2]
[366335635,1750194642594,-490.0,0.00016438,2]
[366335637,1750194642603,-490.0,0.00016438,2]
[366335639,1750194642615,-536.72322551,0.00016438,2]
[366335643,1750194642657,-43.02677449,0.00016438,2]
[366335645,1750194642673,-490.0,0.00016438,2]
[366335647,1750194642683,-490.0,0.00016438,2]
[366335649,1750194642693,-436.20691052,0.00016438,2]
[366335652,1750194642713,-53.79308948,0.00016438,2]
[366335654,1750194642724,-509.33,0.00016438,2]
[366335656,1750194642733,-56.96194952,0.00016438,2]
[366335659,1750194642749,-433.03805048,0.00016438,2]
[366335661,1750194642759,-562.14758847,0.00016438,2]
[366335706,1750194643252,-174.16497053,0.00016438,2]
[366335708,1750194643263,-490.0,0.00016438,2]
[366335710,1750194643272,-541.73947135,0.00016438,2]
[366335712,1750194643281,-490.0,0.00016438,2]
[366335714,1750194643292,-301.6778742,0.00016438,2]
[366335718,1750194643316,-385.0521258,0.00016438,2]
[366335720,1750194643326,-102.47344917,0.00016438,2]
[366335723,1750194643346,-387.52655083,0.00016438,2]
[366335725,1750194643355,-490.0,0.00016438,2]
[366335727,1750194643365,-490.0,0.00016438,2]
[366335729,1750194643374,-894.46,0.00016438,2]
[366335731,1750194643383,-490.0,0.00016438,2]
[366335733,1750194643393,-736.312559,0.00016438,2]
[366335735,1750194643402,-638.63,0.00016438,2]
[366335737,1750194643411,-1475.15,0.00016438,2]
[366335739,1750194643421,-490.0,0.00016438,2]
[366335741,1750194643430,-490.0,0.00016438,2]
[366335743,1750194643440,-490.0,0.00016438,2]
[366335745,1750194643449,-490.0,0.00016438,2]
[366335747,1750194643459,-490.0,0.00016438,2]
[366335749,1750194643469,-490.0,0.00016438,2]
[366335751,1750194643478,-490.0,0.00016438,2]
[366335753,1750194643487,-490.0,0.00016438,2]
[366335755,1750194643497,-490.0,0.00016438,2]
[366335757,1750194643506,-1850.28,0.00016438,2]
[366335759,1750194643516,-460.0,0.00016438,2]
[366335761,1750194643527,-490.0,0.00016438,2]
[366335763,1750194643541,-490.0,0.00016438,2]
[366335766,1750194643550,-490.0,0.00016438,2]
[366335768,1750194643559,-460.0,0.00016438,2]
[366335771,1750194643571,-490.0,0.00016438,2]
[366335774,1750194643581,-460.0,0.00016438,2]
[366335776,1750194643590,-490.0,0.00016438,2]
[366335778,1750194643599,-490.0,0.00016438,2]
[366335780,1750194643609,-711.06,0.00016438,2]
[366335782,1750194643618,-507.83307569,0.00016438,2]
[366335784,1750194643627,-1324.41,0.00016438,2]
[366335786,1750194643637,-490.0,0.00016438,2]
[366335788,1750194643646,-490.0,0.00016438,2]
[366335790,1750194643655,-490.0,0.00016438,2]
[366335793,1750194643666,-2429.01,0.00016438,2]
[366335796,1750194643675,-490.0,0.00016438,2]
[366335799,1750194643685,-490.0,0.00016438,2]
[366335802,1750194643695,-490.0,0.00016438,2]
[366335805,1750194643704,-490.0,0.00016438,2]
[366335808,1750194643714,-490.0,0.00016438,2]
[366335811,1750194643724,-490.0,0.00016438,2]
[366335813,1750194643735,-490.0,0.00016438,2]
[366335815,1750194643745,-1090.65,0.00016438,2]
[366335817,1750194643754,-822.16,0.00016438,2]
[366335819,1750194643764,-490.0,0.00016438,2]
[366335821,1750194643774,-490.0,0.00016438,2]
[366335823,1750194643783,-1454.51,0.00016438,2]
[366335825,1750194643792,-490.0,0.00016438,2]
[366335827,1750194643802,-1221.47,0.00016438,2]
[366335829,1750194643813,-1744.480995,0.00016438,2]
[366335831,1750194643823,-490.0,0.00016438,2]
[366335833,1750194643832,-490.0,0.00016438,2]
[366335835,1750194643842,-500.0,0.00016438,2]
[366335837,1750194643851,-490.0,0.00016438,2]
[366335839,1750194643861,-1004.38,0.00016438,2]
[366335841,1750194643870,-420.0,0.00016438,2]
[366335843,1750194643880,-490.0,0.00016438,2]
[366335845,1750194643890,-490.0,0.00016438,2]
[366335847,1750194643899,-490.0,0.00016438,2]
[366335849,1750194643910,-422.81198889,0.00016438,2]
[366335851,1750194643919,-1559.36,0.00016438,2]
[366335853,1750194643930,-490.0,0.00016438,2]
[366335855,1750194643940,-490.0,0.00016438,2]
[366335857,1750194643949,-793.08,0.00016438,2]
[366335859,1750194643958,-490.0,0.00016438,2]
[366335861,1750194643968,-460.0,0.00016438,2]
[366335863,1750194643978,-313.04498248,0.00016438,2]
[366335865,1750194643988,-490.0,0.00016438,2]
[366335866,1750194643998,-1123.2,0.00016438,2]
[366335867,1750194644008,-490.0,0.00016438,2]
[366335868,1750194644018,-490.0,0.00016438,2]
[366335870,1750194644027,-490.0,0.00016438,2]
[366335871,1750194644034,-460.0,0.00016438,2]
[366335874,1750194644042,-490.0,0.00016438,2]
[366335875,1750194644049,-490.0,0.00016438,2]
[366335877,1750194644058,-490.0,0.00016438,2]
[366335879,1750194644067,-490.0,0.00016438,2]
[366335881,1750194644076,-625.69,0.00016438,2]
[366335884,1750194644086,-230.0,0.00016438,2]
[366335885,1750194644093,-913.53,0.00016438,2]
[366335887,1750194644101,-490.0,0.00016438,2]
[366335889,1750194644110,-490.0,0.00016438,2]
[366335891,1750194644118,-490.0,0.00016438,2]
[366335893,1750194644127,-882.29,0.00016438,2]
[366335895,1750194644135,-490.0,0.00016438,2]
[366335897,1750194644143,-891.64,0.00016438,2]
[366335899,1750194644151,-151.0,0.00016438,2]
[366335901,1750194644159,-1620.18,0.00016438,2]
[366335903,1750194644167,-490.0,0.00016438,2]
[366335905,1750194644175,-648.53,0.00016438,2]
[366335907,1750194644183,-490.0,0.00016438,2]
[366335909,1750194644192,-490.0,0.00016438,2]
[366335911,1750194644202,-1103.95,0.00016438,2]
[366335913,1750194644211,-490.0,0.00016438,2]
[366335915,1750194644221,-392.91156438,0.00016438,2]
[366335917,1750194644230,-161.792817,0.00016438,2]
[366335918,1750194644240,-683.54,0.00016438,2]
[366335921,1750194644250,-161.792817,0.00016438,2]
[366335922,1750194644260,-490.0,0.00016438,2]
[366335924,1750194644269,-1051.12,0.00016438,2]
[366335926,1750194644280,-490.0,0.00016438,2]
[366335928,1750194644289,-490.0,0.00016438,2]
[366335930,1750194644300,-490.0,0.00016438,2]
[366335932,1750194644309,-460.0,0.00016438,2]
[366335934,1750194644319,-490.0,0.00016438,2]
[366335936,1750194644329,-490.0,0.00016438,2]
[366335938,1750194644343,-490.0,0.00016438,2]
[366335940,1750194644353,-460.0,0.00016438,2]
[366335942,1750194644362,-1408.53,0.00016438,2]
[366335943,1750194644372,-490.0,0.00016438,2]
[366335945,1750194644382,-1281.82,0.00016438,2]
[366335947,1750194644391,-1620.53,0.00016438,2]
[366335949,1750194644401,-490.0,0.00016438,2]
[366335951,1750194644410,-490.0,0.00016438,2]
[366335952,1750194644419,-490.0,0.00016438,2]
[366335954,1750194644428,-460.0,0.00016438,2]
[366335956,1750194644437,-490.0,0.00016438,2]
[366335958,1750194644446,-228.07472956,0.00016438,2]
[366335960,1750194644455,-835.56,0.00016438,2]
[366335962,1750194644470,-490.0,0.00016438,2]
[366335964,1750194644480,-490.0,0.00016438,2]
[366335965,1750194644489,-490.0,0.00016438,2]
[366335967,1750194644499,-490.0,0.00016438,2]
[366335969,1750194644511,-2280.08,0.00016438,2]
[366335971,1750194644520,-1620.41,0.00016438,2]
[366335973,1750194644534,-1472.18,0.00016438,2]
[366335975,1750194644547,-460.0,0.00016438,2]
[366335977,1750194644556,-490.0,0.00016438,2]
[366335978,1750194644566,-878.85,0.00016438,2]
[366335980,1750194644577,-1037.34,0.00016438,2]
[366335982,1750194644587,-490.0,0.00016438,2]
[366335984,1750194644597,-490.0,0.00016438,2]
[366335986,1750194644607,-490.0,0.00016438,2]
[366335988,1750194644618,-921.83,0.00016438,2]
[366335989,1750194644629,-1137.76,0.00016438,2]
[366335991,1750194644639,-864.3,0.00016438,2]
[366335993,1750194644650,-553.64,0.00016438,2]
[366335995,1750194644661,-884.52,0.00016438,2]
[366335997,1750194644672,-490.0,0.00016438,2]
[366335999,1750194644683,-1457.49,0.00016438,2]
[366336000,1750194644693,-879.01,0.00016438,2]
[366336002,1750194644704,-490.0,0.00016438,2]
[366336004,1750194644714,-151.0,0.00016438,2]
[366336006,1750194644724,-445.14487803,0.00016438,2]
[366336008,1750194644734,-490.0,0.00016438,2]
[366336010,1750194644744,-490.0,0.00016438,2]
[366336012,1750194644753,-827.99,0.00016438,2]
[366336014,1750194644766,-490.0,0.00016438,2]
[366336016,1750194644775,-500.0,0.00016438,2]
[366336017,1750194644785,-500.0,0.00016438,2]
[366336019,1750194644794,-554.73,0.00016438,2]
[366336021,1750194644804,-784.28,0.00016438,2]
[366336023,1750194644813,-1601.68,0.00016438,2]
[366336024,1750194644823,-906.18,0.00016438,2]
[366336026,1750194644833,-697.95,0.00016438,2]
[366336028,1750194644843,-1659.6,0.00016438,2]
[366336030,1750194644853,-490.0,0.00016438,2]
[366336032,1750194644862,-490.0,0.00016438,2]
[366336033,1750194644872,-490.0,0.00016438,2]
[366336035,1750194644881,-490.0,0.00016438,2]
[366336037,1750194644891,-490.0,0.00016438,2]
[366336039,1750194644901,-490.0,0.00016438,2]
[366336040,1750194644911,-1207.77,0.00016438,2]
[366336042,1750194644921,-490.0,0.00016438,2]
[366336044,1750194644930,-1032.62,0.00016438,2]
[366336046,1750194644940,-596.34,0.00016438,2]
[366336048,1750194644951,-985.08,0.00016438,2]
[366336050,1750194644960,-490.0,0.00016438,2]
[366336052,1750194644970,-490.0,0.00016438,2]
[366336054,1750194644980,-490.0,0.00016438,2]
[366336056,1750194644990,-973.91,0.00016438,2]
[366336080,1750194645248,-490.0,0.00016438,2]
[366336082,1750194645258,-490.0,0.00016438,2]
[366336083,1750194645268,-935.71,0.00016438,2]
[366336084,1750194645278,-787.15,0.00016438,2]
[366336085,1750194645287,-1062.1,0.00016438,2]
[366336086,1750194645297,-490.0,0.00016438,2]
[366336087,1750194645306,-540.12,0.00016438,2]
[366336088,1750194645316,-430.0,0.00016438,2]
[366336089,1750194645325,-490.0,0.00016438,2]
[366336090,1750194645334,-490.0,0.00016438,2]
[366336092,1750194645344,-490.0,0.00016438,2]
[366336093,1750194645353,-490.0,0.00016438,2]
[366336095,1750194645362,-490.0,0.00016438,2]
[366336097,1750194645373,-490.0,0.00016438,2]